bitfinex-derivatives/quotes_ETHF0:USTF0_20260314
["timestamp","ask_amount","ask_price","bid_price","bid_amount"]
[1773491521567,0.61289516,2074.8,2073.9,0.62014168]
[1773491522574,0.61289516,2074.8,2073.9,0.005405]
[1773491527575,0.61289516,2074.8,2073.9,0.62554668]
[1773491528372,0.61289516,2074.8,2074.0,0.62014168]
[1773491529681,0.61289516,2074.8,2073.9,0.005405]
[1773491529978,0.61289516,2074.8,2073.9,0.62554668]
[1773491531879,0.61289516,2074.8,2074.0,1.24528063]
[1773491532383,0.61289516,2074.8,2074.1,0.62014168]
[1773491532582,0.61289516,2074.8,2074.2,0.62513895]
[1773491534682,0.61289516,2074.8,2074.2,1.24528063]
[1773491537284,0.61289516,2074.8,2074.3,0.62014168]
[1773491540688,0.61289516,2074.8,2074.1,2.14493097]
[1773491540880,0.61289516,2074.8,2074.2,0.62513895]
[1773491545888,0.61289516,2074.8,2074.2,1.33096342]
[1773491550989,0.61289516,2074.8,2074.2,0.62513895]
[1773491551792,0.61289516,2074.8,2074.2,1.33096342]
[1773491558096,0.61289516,2074.8,2074.3,0.70582447]
[1773491558499,6.52092553,2074.7,2074.3,0.70582447]
[1773491558699,5.81520483,2074.6,2074.3,0.70582447]
[1773491558997,0.7057207,2074.7,2074.3,0.70582447]
[1773491559199,5.81673556,2074.6,2074.4,1.33096342]
[1773491559499,0.7057207,2074.7,2074.4,0.70582447]
[1773491559800,5.81673161,2074.6,2074.0,0.70582447]
[1773491560000,0.7057207,2074.6,2074.2,0.70582447]
[1773491561107,0.7057207,2074.6,2074.1,0.62513895]
[1773491561312,0.7057207,2074.4,2074.1,0.62513895]
[1773491562009,0.7057207,2074.4,2073.9,0.005405]
[1773491562209,0.7057207,2074.4,2074.0,0.62513895]
[1773491562806,0.7057207,2074.3,2074.0,0.62513895]
[1773491563002,0.7057207,2074.3,2074.0,1.33009552]
[1773491564907,0.7057207,2074.3,2074.0,0.62427105]
[1773491565203,0.7057207,2074.3,2074.0,1.33009552]
[1773491569621,0.7057207,2074.3,2074.0,0.70582447]
[1773491571421,0.7057207,2074.3,2073.9,0.005405]
[1773491571720,0.7057207,2074.3,2074.0,0.62427105]
[1773491572320,0.7057207,2074.3,2074.0,0.30933262]
[1773491572619,0.7057207,2074.3,2073.9,0.75947327]
[1773491573017,0.7057207,2074.3,2073.9,0.005405]
[1773491578218,0.74186304,2074.0,2073.3,0.75406827]
[1773491578422,0.74186304,2073.9,2073.3,0.75406827]
[1773491579322,0.74703916,2073.9,2073.3,0.75795234]
[1773491581330,0.74703916,2073.9,2073.3,0.00388407]
[1773491581630,0.74703916,2073.9,2073.3,0.75795234]
[1773491582431,0.74703916,2073.9,2073.3,0.00388407]
[1773491582735,2.27182845,2073.9,2073.3,0.00388407]
[1773491582930,0.74186304,2073.8,2073.3,0.00388407]
[1773491584531,0.74186304,2073.8,2073.1,1.99364475]
[1773491585125,0.74186304,2073.6,2072.9,40.8]
[1773491585327,0.74186304,2073.6,2072.7,0.75406827]
[1773491585629,0.74186304,2073.4,2072.7,0.75770532]
[1773491585835,9.515,2073.7,2072.8,0.75406827]
[1773491585836,0.74186304,2073.2,2072.8,0.75406827]
[1773491586232,0.74186304,2073.2,2072.7,0.75770532]
[1773491589429,0.74186304,2073.4,2072.7,0.75770532]
[1773491590834,0.74186304,2073.4,2072.8,0.75406827]
[1773491593936,0.74186304,2073.4,2072.7,0.75770532]
[1773491611142,6.51518935,2073.4,2072.7,0.75770532]
[1773491611450,0.80408537,2073.2,2072.7,0.75770532]
[1773491612937,0.80408537,2073.2,2072.6,0.79496859]
[1773491613336,0.80408537,2073.2,2072.2,7.59144071]
[1773491613337,0.80408537,2073.2,2072.2,8.3864093]
[1773491613543,0.80408537,2073.0,2072.3,0.79496859]
[1773491613743,0.80408537,2072.9,2072.3,0.79496859]
[1773491614045,0.80408537,2072.9,2072.3,0.80060617]
[1773491614247,0.80408537,2072.8,2072.3,0.80060617]
[1773491617150,0.80408537,2072.8,2072.3,0.00563758]
[1773491617648,0.80408537,2072.8,2072.3,0.80060617]
[1773491618045,0.80408537,2072.8,2072.3,0.00563758]
[1773491618751,0.80408537,2072.8,2072.3,0.80060617]
[1773491618947,0.80408537,2072.8,2071.9,0.79496859]
[1773491619450,0.80408537,2072.7,2072.1,0.79496859]
[1773491620153,0.80408537,2072.7,2072.1,0.80121159]
[1773491621750,0.80408537,2072.7,2072.1,0.006243]
[1773491622549,0.80408537,2072.5,2071.8,0.79496859]
[1773491622752,0.80408537,2072.4,2071.8,0.79496859]
[1773491623655,0.80408537,2072.4,2071.8,0.79887568]
[1773491623656,0.81008477,2072.4,2071.8,0.79887568]
[1773491624970,0.81008477,2072.4,2071.4,0.79496859]
[1773491625463,0.0059994,2072.4,2071.5,41.59496859]
[1773491625660,0.0059994,2072.4,2071.6,0.79496859]
[1773491625863,0.81008477,2072.4,2071.6,0.79496859]
[1773491626062,0.81008477,2072.4,2071.6,0.8001845]
[1773491626459,0.81008477,2072.4,2071.7,0.79496859]
[1773491627059,0.0059994,2072.4,2071.7,0.79496859]
[1773491628163,0.81008477,2072.4,2071.7,0.79496859]
[1773491629767,0.0059994,2072.4,2071.7,0.79496859]
[1773491631362,0.0059994,2072.4,2071.9,0.81378027]
[1773491631873,0.83835026,2072.4,2071.9,0.81378027]
[1773491632372,0.0059994,2072.4,2071.9,0.81378027]
[1773491634067,0.83835026,2072.4,2071.9,0.81378027]
[1773491639575,0.0059994,2072.4,2071.9,0.81378027]
[1773491640773,0.83235086,2072.7,2071.9,0.81378027]
[1773491641369,0.83235086,2072.7,2072.1,0.81378027]
[1773491641974,0.8374471,2072.7,2072.1,0.81378027]
[1773491642176,0.8374471,2072.7,2072.2,0.81378027]
[1773491642375,0.83235086,2072.6,2072.2,0.81378027]
[1773491645072,0.8374471,2072.7,2072.2,0.81378027]
[1773491647374,0.83235086,2072.6,2072.2,0.81378027]
[1773491647771,0.00509624,2072.7,2072.2,0.81378027]
[1773491650578,0.8374471,2072.7,2072.2,0.81378027]
[1773491652083,0.8374471,2072.7,2072.0,0.81378027]
[1773491652285,0.8374471,2072.7,2072.2,0.81378027]
[1773491652479,0.8374471,2072.7,2072.3,0.81378027]
[1773491655384,0.8374471,2072.7,2072.2,27.51078027]
[1773491657684,0.8374471,2072.7,2072.3,0.81378027]
[1773491658393,0.8374471,2072.7,2072.2,27.51078027]
[1773491659088,0.8374471,2072.7,2072.3,0.81378027]
[1773491659590,0.8374471,2072.7,2072.2,0.81378027]
[1773491659791,0.8374471,2072.7,2072.1,27.68278027]
[1773491660391,0.83235086,2072.6,2072.2,0.81378027]
[1773491661690,0.83235086,2072.6,2072.1,26.902]
[1773491661886,0.83235086,2072.6,2071.8,40.8]
[1773491661887,2.36039562,2072.6,2071.8,40.8]
[1773491662193,0.80308135,2072.5,2071.9,26.907]
[1773491662389,0.80308135,2072.5,2071.9,27.69741172]
[1773491664095,0.80308135,2072.5,2072.0,0.79041172]
[1773491669199,0.80308135,2072.4,2072.0,0.79041172]
[1773491670198,0.80308135,2072.5,2072.0,0.79041172]
[1773491683811,0.80308135,2072.4,2072.0,0.79041172]
[1773491694716,0.80308135,2072.4,2071.7,0.80113163]
[1773491694917,0.80308135,2072.4,2071.8,0.80113163]
[1773491695117,6.62226721,2072.4,2072.0,0.80113163]
[1773491695320,0.80308135,2072.4,2072.0,0.80113163]
[1773491695521,0.85477191,2072.5,2072.0,0.80113163]
[1773491696321,0.00509624,2072.7,2072.0,0.80113163]
[1773491696522,0.85477191,2073.0,2072.5,0.80113163]
[1773491696716,0.85477191,2073.0,2072.4,1.52804476]
[1773491696717,0.85477191,2073.2,2072.7,0.80113163]
[1773491697719,0.86064878,2073.2,2072.7,0.80113163]
[1773491701721,0.86064878,2073.2,2072.5,0.80113163]
[1773491701926,0.85477191,2072.9,2072.1,0.80113163]
[1773491702423,0.85477191,2072.9,2072.2,0.80113163]
[1773491702925,0.85477191,2072.9,2072.0,0.80113163]
[1773491702926,0.85477191,2072.8,2072.0,0.80113163]
[1773491712139,0.85477191,2072.6,2072.0,0.80113163]
[1773491713133,0.85477191,2072.6,2071.8,0.80113163]
[1773491715239,0.85477191,2072.4,2071.8,0.80113163]
[1773491724642,0.85477191,2072.4,2071.6,0.00521591]
[1773491724842,0.85477191,2072.4,2071.6,0.86172298]
[1773491725445,0.85477191,2072.4,2071.6,0.00521591]
[1773491725637,0.85477191,2072.4,2071.6,0.86172298]
[1773491735051,0.85477191,2072.4,2071.6,0.00521591]
[1773491735750,0.85477191,2072.4,2071.6,0.86172298]
[1773491741654,0.85477191,2072.4,2071.6,0.00521591]
[1773491742459,6.91639428,2072.4,2071.6,0.00521591]
[1773491742659,0.861416,2072.3,2071.3,0.85650707]
[1773491742958,0.861416,2072.0,2071.2,0.85650707]
[1773491743259,0.861416,2072.2,2071.2,0.85650707]
[1773491743652,0.861416,2072.2,2071.2,0.86020823]
[1773491743858,0.861416,2072.1,2071.2,0.86020823]
[1773491744847,0.861416,2072.0,2071.2,0.86020823]
[1773491746048,0.861416,2071.9,2071.2,0.86020823]
[1773491751463,5.6120287,2072.0,2071.2,0.86020823]
[1773491751760,0.79620452,2072.1,2071.2,0.86020823]
[1773491752657,6.40900015,2072.1,2071.2,0.86020823]
[1773491752856,0.79620452,2072.1,2071.2,0.86020823]
[1773491753759,6.40959623,2072.1,2071.2,0.86020823]
[1773491753959,0.79620452,2072.1,2071.2,0.86020823]
[1773491754863,0.79620452,2072.0,2071.2,0.86020823]
[1773491759763,0.79620452,2071.9,2071.2,0.86020823]
[1773491762373,0.79620452,2071.9,2071.2,0.81264105]
[1773491762566,0.79620452,2071.9,2071.2,0.00370116]
[1773491762870,0.79620452,2071.9,2071.0,0.80893989]
[1773491763070,0.79620452,2071.8,2071.0,0.80893989]
[1773491763271,0.79620452,2071.7,2071.0,0.80893989]
[1773491763466,0.79620452,2071.6,2071.0,0.80893989]
[1773491763870,0.79620452,2071.6,2071.0,0.81414308]
[1773491763871,0.80234807,2071.6,2071.0,0.81414308]
[1773491767567,0.80234807,2071.6,2070.8,0.80893989]
[1773491767976,0.79620452,2071.5,2070.8,0.80893989]
[1773491768777,0.79620452,2071.5,2070.8,0.81510131]
[1773491772179,0.79620452,2071.5,2070.8,0.00616142]
[1773491772372,0.79620452,2071.5,2070.7,0.32055666]
[1773491772675,1.03756452,2071.3,2070.1,7.59144071]
[1773491772880,0.79620452,2071.0,2070.1,0.80893989]
[1773491773183,0.79620452,2071.4,2070.1,2.33753971]
[1773491773374,0.79620452,2071.4,2070.3,0.80893989]
[1773491773680,0.79620452,2071.4,2070.5,0.80893989]
[1773491774273,0.80234807,2071.6,2070.5,0.80893989]
[1773491774478,0.79620452,2071.5,2070.5,0.80893989]
[1773491779682,0.79620452,2071.5,2070.8,0.80893989]
[1773491780481,0.79620452,2071.5,2070.7,0.80893989]
[1773491785784,0.85777343,2071.3,2070.7,0.80893989]
[1773491788579,0.85777343,2071.3,2070.8,0.84296087]
[1773491789785,0.85777343,2071.3,2070.5,0.84296087]
[1773491792176,0.85777343,2071.2,2070.5,0.84296087]
[1773491794684,0.85777343,2071.2,2070.4,0.84296087]
[1773491797881,0.85777343,2071.1,2070.4,0.84296087]
[1773491799387,0.85777343,2071.0,2070.3,0.89296087]
[1773491800289,0.85777343,2071.0,2070.3,0.05]
[1773491801382,0.85777343,2071.0,2070.3,0.89296087]
[1773491803187,0.37355289,2070.8,2069.8,5.67209063]
[1773491803386,0.37355289,2070.7,2070.0,0.84296087]
[1773491803892,6.03447616,2070.8,2070.2,0.84296087]
[1773491804189,1.05780597,2070.7,2070.2,0.84794091]
[1773491804389,0.67442798,2070.6,2070.2,0.84794091]
[1773491804592,0.67442798,2070.5,2070.2,0.84794091]
[1773491804793,0.67442798,2070.4,2070.2,0.84794091]
[1773491804986,0.38337799,2070.7,2070.2,0.84794091]
[1773491805486,0.31184935,2070.6,2070.2,0.84794091]
[1773491806087,0.31184935,2070.6,2070.0,0.84296087]
[1773491806385,0.31183685,2070.5,2070.0,0.84296087]
[1773491807090,0.31183685,2070.5,2070.0,0.849049]
[1773491807582,0.31183685,2070.5,2070.0,0.00608813]
[1773491808089,1.84165647,2070.5,2070.0,0.00608813]
[1773491808288,0.31327694,2070.4,2070.0,0.00608813]
[1773491808493,0.31327694,2070.4,2070.0,0.00095316]
[1773491808791,0.31327694,2070.4,2070.0,0.84391403]
[1773491809293,0.60338123,2070.6,2070.2,0.85017863]
[1773491809482,0.30089671,2070.9,2070.2,0.85017863]
[1773491809682,0.90427794,2070.9,2070.2,0.85017863]
[1773491809882,0.29264602,2071.0,2070.2,0.85017863]
[1773491810086,0.60338123,2071.0,2070.4,0.85017863]
[1773491810290,0.29264602,2071.1,2070.4,0.85017863]
[1773491810684,0.60338123,2071.1,2070.6,0.85017863]
[1773491810884,4.03269668,2071.4,2070.6,0.85017863]
[1773491810885,0.60338123,2071.2,2070.6,0.85017863]
[1773491811086,0.28702603,2071.4,2070.6,0.85017863]
[1773491811287,0.89040726,2071.4,2070.6,0.85017863]
[1773491811987,0.28068786,2071.1,2070.0,0.81916997]
[1773491812183,0.60338123,2071.0,2070.2,0.81821681]
[1773491812390,0.28068786,2071.0,2070.2,0.81821681]
[1773491812590,0.88406909,2071.0,2070.2,0.81821681]
[1773491812789,0.88406909,2071.0,2070.1,1.52981962]
[1773491812790,0.28068786,2071.0,2070.4,0.81821681]
[1773491812990,6.34272833,2071.3,2070.6,0.81821681]
[1773491812991,0.60338123,2071.2,2070.6,0.81821681]
[1773491813393,0.27509692,2071.3,2070.6,0.81821681]
[1773491813992,1.86837068,2070.8,2070.2,0.81821681]
[1773491814195,2.13320085,2071.2,2070.5,0.81821681]
[1773491814196,0.33855106,2071.2,2070.5,0.81821681]
[1773491814595,0.92215333,2071.2,2070.5,0.81821681]
[1773491815088,0.33419664,2071.1,2070.5,0.81821681]
[1773491818990,0.33419664,2071.1,2070.1,0.81821681]
[1773491819299,0.33419664,2071.1,2070.2,0.81821681]
[1773491819300,0.33033068,2071.1,2070.2,0.81821681]
[1773491819499,0.32909709,2071.0,2070.2,0.81821681]
[1773491823196,0.33223701,2070.9,2070.2,0.81821681]
[1773491826501,0.27310162,2070.2,2069.6,0.81821681]
[1773491826800,0.26414303,2070.5,2069.6,0.81821681]
[1773491826998,0.26414303,2070.5,2069.8,0.81821681]
[1773491826999,5.82423288,2070.5,2069.8,0.81821681]
[1773491827199,0.26414303,2070.7,2069.8,0.81821681]
[1773491827600,6.15156562,2070.7,2069.8,0.82191931]
[1773491827801,6.14623611,2070.6,2069.8,0.82191931]
[1773491827996,0.25881352,2070.6,2069.8,0.82191931]
[1773491829104,6.17145494,2070.6,2069.8,0.82191931]
[1773491829403,0.25881352,2070.6,2069.8,0.82191931]
[1773491830411,6.16248626,2070.8,2069.8,0.82191931]
[1773491831005,5.91115893,2070.7,2069.8,0.82191931]
[1773491831308,0.25132733,2070.8,2069.8,0.82191931]
[1773491831710,0.23701606,2070.7,2069.8,0.82191931]
[1773491831904,6.14788145,2070.7,2069.8,0.82191931]
[1773491832110,0.23701606,2070.7,2069.8,0.82191931]
[1773491832704,6.14761016,2070.7,2069.8,0.82191931]
[1773491833005,0.23701606,2070.7,2069.8,0.82191931]
[1773491834115,0.2233239,2070.5,2069.8,0.82191931]
[1773491847326,0.14293447,2070.7,2069.8,0.82191931]
[1773491847532,6.05231477,2070.7,2069.8,0.82191931]
[1773491849535,0.13968055,2070.6,2069.8,0.82191931]
[1773491850133,6.04906085,2070.6,2069.8,0.82191931]
[1773491850334,0.13968055,2070.6,2069.8,0.82191931]
[1773491850735,6.05179038,2070.6,2069.8,0.82191931]
[1773491850931,5.91210983,2070.5,2069.8,0.82191931]
[1773491851132,0.13968055,2070.6,2069.8,0.82191931]
[1773491851626,6.05387334,2070.6,2069.8,0.82191931]
[1773491851825,5.91419279,2070.5,2069.8,0.82191931]
[1773491852025,0.13968055,2070.6,2069.8,0.82191931]
[1773491852435,6.05536314,2070.6,2069.8,0.82191931]
[1773491852734,5.91568259,2070.5,2069.8,0.82191931]
[1773491852935,0.13968055,2070.6,2069.8,0.82191931]
[1773491853332,5.91568468,2070.5,2069.8,0.82191931]
[1773491854132,5.91568468,2070.4,2069.8,0.82191931]
[1773491854338,0.13968055,2070.6,2069.8,0.82191931]
[1773491854532,5.91840161,2070.5,2069.8,0.82191931]
[1773491855137,5.91840161,2070.4,2069.8,0.82191931]
[1773491856639,4.10014363,2070.7,2069.8,0.82191931]
[1773491856838,5.92405006,2070.6,2069.8,0.82191931]
[1773491857039,5.92405006,2070.5,2069.8,0.82191931]
[1773491857335,4.03269668,2070.7,2069.8,0.82191931]
[1773491857538,5.92719733,2070.6,2069.8,0.82191931]
[1773491857729,5.92719733,2070.5,2069.8,0.82191931]
[1773491857934,4.0930135,2070.7,2069.8,0.82191931]
[1773491858134,5.92718532,2070.6,2069.8,0.82191931]
[1773491858335,6.06162237,2070.9,2069.8,0.82191931]
[1773491858336,4.03269668,2070.9,2069.8,0.82191931]
[1773491858634,4.68527169,2070.9,2069.8,0.82191931]
[1773491858839,0.65257501,2070.9,2069.8,0.82191931]
[1773491860041,0.63459957,2071.0,2069.8,0.82191931]
[1773491865344,0.66445717,2070.9,2069.9,0.71093554]
[1773491867845,4.69715385,2070.9,2069.9,0.71093554]
[1773491868146,0.65715274,2070.8,2069.9,0.71093554]
[1773491870349,0.65329281,2070.7,2069.9,0.71093554]
[1773491877154,0.63983916,2070.6,2069.9,0.71093554]
[1773491880256,7.82866167,2071.1,2069.9,0.71093554]
[1773491880257,6.52953285,2070.7,2069.9,0.71093554]
[1773491880458,0.63154698,2070.7,2069.9,0.71093554]
[1773491881555,0.62883445,2070.6,2069.9,0.71093554]
[1773491886161,0.60366322,2071.0,2069.9,0.71093554]
[1773491892177,4.03269668,2071.2,2069.8,0.0037025]
[1773491892178,0.57575795,2071.2,2070.1,0.70950836]
[1773491893468,0.5693827,2071.3,2070.1,0.70950836]
[1773491898677,0.63790261,2071.2,2070.1,0.70950836]
[1773491901580,0.63790261,2071.2,2070.3,0.63981458]
[1773491902482,0.62939688,2071.1,2070.3,0.63981458]
[1773491914092,0.56688312,2071.0,2070.3,0.63981458]
[1773491929403,0.54599007,2070.9,2070.3,0.63981458]
[1773491937107,2.04532571,2071.2,2070.3,0.63981458]
[1773491937308,5.8907609,2071.1,2070.3,0.63981458]
[1773491937610,0.51499066,2071.0,2070.3,0.63981458]
[1773491941009,0.51077053,2070.9,2070.4,0.5975345]
[1773491965333,5.89578971,2071.2,2070.4,0.5975345]
[1773491965537,5.89578971,2071.1,2070.4,0.5975345]
[1773491965735,0.47474523,2071.2,2070.4,0.5975345]
[1773491965935,6.37115637,2071.1,2070.4,0.5975345]
[1773491966136,0.4738304,2071.1,2070.4,0.5975345]
[1773491972145,0.459303,2070.9,2070.4,0.5975345]
[1773491983655,0.459303,2070.9,2070.0,0.62344279]
[1773491984857,6.35099715,2070.9,2070.0,0.62344279]
[1773491985055,0.459303,2070.9,2070.0,0.62344279]
[1773491985656,0.4454127,2070.8,2070.0,0.62344279]
[1773492001461,6.37414919,2071.0,2070.0,0.62344279]
[1773492001666,0.48625178,2071.2,2070.3,0.58398658]
[1773492001867,0.48625178,2071.2,2070.5,0.58398658]
[1773492002068,0.48625178,2071.2,2070.4,26.634]
[1773492002069,5.88968007,2071.3,2070.6,40.8]
[1773492002266,6.37534191,2071.3,2070.7,0.58398658]
[1773492002466,0.48566184,2071.3,2070.7,0.58398658]
[1773492003171,6.37342918,2071.3,2070.7,0.58398658]
[1773492003369,0.48501841,2071.5,2070.7,0.58398658]
[1773492003671,6.37127429,2071.5,2070.7,0.58398658]
[1773492004374,0.48501841,2071.5,2070.7,0.58398658]
[1773492013479,6.11374851,2071.9,2070.7,0.58398658]
[1773492013682,0.47365166,2072.2,2071.3,0.58398658]
[1773492013981,0.47365166,2072.2,2071.5,0.58398658]
[1773492014680,0.47895831,2072.2,2071.5,0.58888181]
[1773492059405,0.47895831,2072.2,2071.6,0.55121404]
[1773492060504,0.52153174,2072.1,2071.6,0.55121404]
[1773492060817,0.52153174,2072.1,2070.9,0.55121404]
[1773492060818,0.52153174,2071.7,2070.9,0.55121404]
[1773492061018,0.27748402,2071.5,2070.9,0.55121404]
[1773492061214,0.27748402,2071.3,2070.8,0.55121404]
[1773492061604,0.27748402,2071.3,2070.8,0.55591284]
[1773492068822,0.29580727,2071.4,2070.8,0.55591284]
[1773492078327,0.29580727,2071.4,2070.8,27.30491284]
[1773492079030,0.29580727,2071.4,2070.9,0.55121404]
[1773492082928,0.29580727,2071.4,2070.8,26.7536988]
[1773492083128,0.29580727,2071.4,2070.8,27.30203101]
[1773492088535,0.26523698,2071.3,2070.9,0.54833221]
[1773492089631,0.26426349,2071.2,2070.9,0.54833221]
[1773492091428,0.26426349,2071.2,2070.6,1.82858903]
[1773492091634,0.59905982,2071.1,2070.7,0.54833221]
[1773492092435,0.59905982,2071.1,2070.7,0.5540128]
[1773492101039,0.59905982,2071.2,2070.7,0.5540128]
[1773492102042,0.59905982,2071.1,2070.7,0.5540128]
[1773492103148,0.59905982,2071.1,2070.7,0.00568059]
[1773492104050,0.59905982,2071.0,2070.7,0.00568059]
[1773492121560,6.4147921,2071.0,2070.7,0.60341224]
[1773492121762,0.59905982,2071.0,2070.7,0.60341224]
[1773492122163,0.59905982,2071.0,2070.7,0.00568059]
[1773492122463,0.5853398,2070.9,2070.7,0.00568059]
[1773492127865,0.5853398,2070.9,2070.5,0.59773165]
[1773492128061,5.81217684,2071.2,2070.6,0.59773165]
[1773492128265,0.5853398,2071.4,2070.6,0.59773165]
[1773492128756,0.5853398,2071.4,2070.6,0.6016665]
[1773492137776,0.5853398,2071.5,2070.6,0.6016665]
[1773492147576,0.5853398,2071.5,2070.8,0.57635205]
[1773492147773,0.5853398,2071.5,2070.7,1.52972886]
[1773492147774,0.5853398,2071.5,2070.9,27.96835205]
[1773492149989,0.5853398,2071.5,2071.0,0.57635205]
[1773492152989,0.56782737,2071.6,2071.0,0.57635205]
[1773492159397,0.56782737,2071.5,2070.8,0.57635205]
[1773492159696,0.56782737,2071.5,2070.9,28.01235205]
[1773492164597,0.56782737,2071.5,2071.0,0.57635205]
[1773492165297,0.56782737,2071.4,2071.0,0.57635205]
[1773492179302,0.55165413,2071.5,2071.0,0.57635205]
[1773492183204,0.55165413,2071.6,2071.0,0.57635205]
[1773492185699,0.55165413,2071.5,2071.0,0.57635205]
[1773492189705,0.55165413,2071.5,2071.1,0.56435765]
[1773492192311,0.55165413,2071.7,2071.1,0.56435765]
[1773492192515,6.22864415,2071.7,2071.1,0.56435765]
[1773492192710,4.04189586,2071.9,2071.1,0.56435765]
[1773492192711,2.44336528,2071.9,2071.1,0.56435765]
[1773492192912,1e-08,2072.0,2071.2,8.13442727]
[1773492193117,1e-08,2072.0,2071.3,0.56435765]
[1773492193313,1e-08,2072.0,2071.4,40.8]
[1773492193519,1e-08,2072.0,2071.4,41.36435765]
[1773492193719,1e-08,2072.0,2071.4,0.56435765]
[1773492196023,1e-08,2072.0,2071.6,0.56435765]
[1773492197020,0.55696078,2072.2,2071.6,0.56435765]
[1773492209728,0.55696078,2072.2,2071.7,0.54082008]
[1773492221833,0.55696078,2072.2,2071.8,27.783]
[1773492223238,0.55696078,2072.2,2071.8,28.32382008]
[1773492223436,0.55696078,2072.2,2071.7,0.54082008]
[1773492223637,0.55696078,2072.2,2071.8,27.807]
[1773492224639,0.55696078,2072.2,2071.8,28.34782008]
[1773492224841,5.61499015,2072.4,2071.9,0.54082008]
[1773492225042,0.5407359,2072.6,2071.9,0.54082008]
[1773492225340,6.15611126,2072.5,2071.9,0.54082008]
[1773492225541,0.5407359,2072.5,2071.9,0.54082008]
[1773492225937,0.54596871,2072.5,2071.9,0.54082008]
[1773492226143,6.16053542,2072.5,2071.9,0.54082008]
[1773492226344,0.54596871,2072.5,2071.9,0.54082008]
[1773492227041,6.1598391,2072.5,2071.9,0.54082008]
[1773492227242,0.54596871,2072.5,2071.9,0.54082008]
[1773492227841,0.5407359,2072.4,2071.9,0.54082008]
[1773492228638,6.15910547,2072.5,2071.9,0.54082008]
[1773492228847,0.54596871,2072.5,2071.9,0.54082008]
[1773492229946,6.15860026,2072.5,2071.9,0.54082008]
[1773492230147,0.54596871,2072.5,2071.9,0.54082008]
[1773492231740,6.15782065,2072.5,2071.9,0.54082008]
[1773492232040,0.54596871,2072.5,2071.9,0.54082008]
[1773492234140,6.15755291,2072.5,2071.9,0.54082008]
[1773492234346,0.54596871,2072.5,2071.9,0.54082008]
[1773492237046,6.15583096,2072.5,2071.9,0.54082008]
[1773492237253,0.54596871,2072.5,2071.9,0.54082008]
[1773492238147,6.15599701,2072.5,2071.9,0.54082008]
[1773492238353,0.54596871,2072.5,2071.9,0.54082008]
[1773492254371,0.58479061,2072.4,2071.9,0.54082008]
[1773492255773,0.00523281,2072.5,2071.9,0.54082008]
[1773492255972,6.20719723,2072.5,2071.9,0.54082008]
[1773492256271,0.59002342,2072.5,2071.9,0.54082008]
[1773492256868,6.2072386,2072.5,2071.9,0.54082008]
[1773492257067,0.59002342,2072.5,2071.9,0.54082008]
[1773492257662,6.20723884,2072.5,2071.9,0.54082008]
[1773492257870,0.59002342,2072.5,2071.9,0.54082008]
[1773492258567,6.20725095,2072.5,2071.9,0.54082008]
[1773492258862,0.59002342,2072.5,2071.9,0.54082008]
[1773492259066,0.00523281,2072.5,2071.9,0.54082008]
[1773492259469,5.62249601,2072.5,2071.9,0.54082008]
[1773492259773,0.00523281,2072.5,2071.9,0.54082008]
[1773492267579,0.00523281,2072.5,2072.0,0.56740803]
[1773492270070,0.57353411,2072.5,2072.0,0.56740803]
[1773492273081,0.00523281,2072.5,2072.0,0.56740803]
[1773492281187,0.00523281,2072.5,2071.8,0.56740803]
[1773492281188,0.5683013,2072.3,2071.8,0.56740803]
[1773492283589,0.5683013,2072.3,2071.9,0.56740803]
[1773492293003,0.59146387,2072.0,2071.3,0.56182452]
[1773492295097,0.59146387,2072.0,2070.9,30.10903308]
[1773492295098,0.59146387,2071.8,2071.1,0.56182452]
[1773492296895,0.59146387,2071.8,2071.0,29.18282452]
[1773492297395,0.59146387,2071.8,2071.1,0.56182452]
[1773492301805,0.59146387,2072.0,2071.2,0.56182452]
[1773492302001,0.59146387,2072.0,2071.3,0.56182452]
[1773492302206,0.59146387,2072.2,2071.4,0.56182452]
[1773492302403,6.18509434,2072.3,2071.4,0.56182452]
[1773492302704,0.59146387,2072.3,2071.4,0.56182452]
[1773492303703,0.59146387,2072.3,2071.6,0.56182452]
[1773492311510,0.59146387,2072.3,2071.2,28.58908562]
[1773492311511,0.00523281,2072.5,2071.8,0.56182452]
[1773492312008,0.59669668,2072.5,2071.8,0.56182452]
[1773492326416,0.56270343,2072.5,2071.8,0.56182452]
[1773492329619,0.00523281,2072.5,2071.8,0.56182452]
[1773492330214,5.63063126,2072.5,2071.8,0.56182452]
[1773492330414,0.00523281,2072.5,2071.8,0.56182452]
[1773492331213,5.63641785,2072.5,2071.8,0.56182452]
[1773492331519,5.63118504,2072.4,2071.8,0.56182452]
[1773492331822,0.00523281,2072.5,2071.8,0.56182452]
[1773492332017,5.64098744,2072.5,2071.8,0.56182452]
[1773492332315,6.19845806,2072.5,2071.8,0.56182452]
[1773492332518,5.63575463,2072.4,2071.8,0.56182452]
[1773492332719,0.56270343,2072.5,2071.8,0.56182452]
[1773492333120,6.20050158,2072.5,2071.8,0.56182452]
[1773492333321,5.63779815,2072.4,2071.8,0.56182452]
[1773492333522,0.56270343,2072.5,2071.8,0.56182452]
[1773492334019,6.20104235,2072.5,2071.8,0.56182452]
[1773492334219,5.63833892,2072.4,2071.8,0.56182452]
[1773492334427,0.56270343,2072.5,2071.8,0.56182452]
[1773492334919,6.20136008,2072.5,2071.8,0.56182452]
[1773492335115,5.63865665,2072.4,2071.8,0.56182452]
[1773492335423,0.56270343,2072.5,2071.8,0.56182452]
[1773492335920,6.2017436,2072.5,2071.8,0.56182452]
[1773492336123,5.63904017,2072.4,2071.8,0.56182452]
[1773492336422,0.56270343,2072.5,2071.8,0.56182452]
[1773492336617,5.63952177,2072.4,2071.8,0.56182452]
[1773492337121,6.19699239,2072.4,2071.8,0.56182452]
[1773492341224,6.19699239,2072.3,2071.8,0.56182452]
[1773492341527,0.55747062,2072.3,2071.8,0.56182452]
[1773492341922,6.20174782,2072.3,2071.8,0.56182452]
[1773492342122,0.55747062,2072.3,2071.8,0.56182452]
[1773492342725,6.20174424,2072.3,2071.8,0.56182452]
[1773492342918,0.55747062,2072.3,2071.8,0.56182452]
[1773492343323,6.20196534,2072.3,2071.8,0.56182452]
[1773492343624,0.55747062,2072.3,2071.8,0.56182452]
[1773492344023,6.20195738,2072.3,2071.8,0.56182452]
[1773492344226,0.55747062,2072.3,2071.8,0.56182452]
[1773492344627,6.20194451,2072.3,2071.8,0.56182452]
[1773492344823,0.55747062,2072.3,2071.8,0.56182452]
[1773492345224,6.20194525,2072.3,2071.8,0.56182452]
[1773492345523,0.55747062,2072.3,2071.8,0.56182452]
[1773492345922,6.20193413,2072.3,2071.8,0.56182452]
[1773492346127,0.55747062,2072.3,2071.8,0.56182452]
[1773492346526,6.20193413,2072.3,2071.8,0.56182452]
[1773492346728,0.55747062,2072.3,2071.8,0.56182452]
[1773492347127,0.55747062,2072.2,2071.8,0.56182452]
[1773492349032,0.58014936,2072.4,2071.8,0.56182452]
[1773492349228,6.22497386,2072.4,2071.8,0.56182452]
[1773492350235,0.59722581,2074.0,2072.0,7.56857482]
[1773492350435,0.58014936,2073.2,2072.8,0.56923641]
[1773492350733,0.58014936,2073.2,2072.7,7.59150727]